fUST/lending_fUST_20260117
["ID","MTS","AMOUNT","RATE_DAILY","PERIOD"]
[402233144,1768614642483,-500.0,0.00021917,3]
[402233146,1768614642492,-732.47,0.00021917,3]
[402233148,1768614642502,-500.0,0.00021917,3]
[402233150,1768614642511,-719.18,0.00021917,3]
[402233152,1768614642520,-500.0,0.00021917,3]
[402233154,1768614642529,-500.0,0.00021917,3]
[402233157,1768614642538,-1718.36,0.00021917,3]
[402233159,1768614642546,-982.26,0.00021917,3]
[402233162,1768614642555,-500.0,0.00021917,3]
[402233166,1768614642567,-500.0,0.00021917,3]
[402233168,1768614642575,-500.0,0.00021917,3]
[402233170,1768614642585,-519.00449958,0.00021917,3]
[402233172,1768614642594,-500.0,0.00021917,3]
[402233174,1768614642603,-1281.04,0.00021917,3]
[402233176,1768614642613,-500.0,0.00021917,3]
[402233177,1768614642622,-500.0,0.00021917,3]
[402233179,1768614642631,-500.0,0.00021917,3]
[402233181,1768614642640,-581.87,0.00021917,3]
[402233183,1768614642650,-500.0,0.00021917,3]
[402233185,1768614642659,-500.0,0.00021917,3]
[402233187,1768614642669,-801.67,0.00021917,3]
[402233189,1768614642678,-2280.79,0.00021917,3]
[402233191,1768614642687,-500.0,0.00021917,3]
[402233193,1768614642696,-693.24,0.00021917,3]
[402233196,1768614642705,-500.0,0.00021917,3]
[402233198,1768614642714,-500.0,0.00021917,3]
[402233200,1768614642723,-500.0,0.00021917,3]
[402233202,1768614642732,-500.0,0.00021917,3]
[402233204,1768614642741,-500.0,0.00021917,3]
[402233206,1768614642750,-500.0,0.00021917,3]
[402233207,1768614642760,-1025.41,0.00021917,3]
[402233209,1768614642772,-918.67,0.00021917,3]
[402233211,1768614642781,-500.0,0.00021917,3]
[402233213,1768614642790,-500.0,0.00021917,3]
[402233215,1768614642799,-500.0,0.00021917,3]
[402233217,1768614642809,-545.07,0.00021917,3]
[402233219,1768614642818,-500.0,0.00021917,3]
[402233221,1768614642826,-500.0,0.00021917,3]
[402233223,1768614642835,-502.61139783,0.00021917,3]
[402233225,1768614642845,-500.0,0.00021917,3]
[402233227,1768614642854,-500.0,0.00021917,3]
[402233229,1768614642863,-615.40537901,0.00021917,3]
[402233231,1768614642873,-500.0,0.00021917,3]
[402233233,1768614642881,-1000.0,0.00021917,2]
[402233235,1768614642890,-1177.63,0.00021917,3]
[402233237,1768614642899,-500.0,0.00021917,3]
[402233239,1768614642908,-500.0,0.00021917,3]
[402233241,1768614642916,-500.0,0.00021917,3]
[402233243,1768614642926,-500.0,0.00021917,3]
[402233244,1768614642935,-500.0,0.00021917,3]
[402233246,1768614642943,-500.0,0.00021917,3]
[402233248,1768614642952,-604.12,0.00021917,3]
[402233250,1768614642961,-500.0,0.00021917,3]
[402233252,1768614642970,-500.0,0.00021917,3]
[402233254,1768614642979,-536.95,0.00021917,3]
[402233256,1768614642988,-500.0,0.00021917,3]
[402233258,1768614642997,-1200.0,0.00021917,3]
[402233260,1768614643006,-500.0,0.00021917,3]
[402233262,1768614643015,-693.91,0.00021917,3]
[402233263,1768614643025,-1724.71,0.00021917,3]
[402233265,1768614643034,-1062.8,0.00021917,3]
[402233267,1768614643043,-500.0,0.00021917,3]
[402233269,1768614643051,-1944.49,0.00021917,3]
[402233271,1768614643062,-500.0,0.00021917,3]
[402233273,1768614643071,-591.9,0.00021917,3]
[402233275,1768614643080,-500.0,0.00021917,3]
[402233277,1768614643089,-1076.17,0.00021917,3]
[402233279,1768614643098,-500.0,0.00021917,3]
[402233281,1768614643107,-500.0,0.00021917,3]
[402233283,1768614643116,-500.0,0.00021917,3]
[402233285,1768614643124,-500.0,0.00021917,3]
[402233287,1768614643133,-1004.23,0.00021917,3]
[402233289,1768614643141,-645.99,0.00021917,3]
[402233291,1768614643150,-863.39,0.00021917,3]
[402233293,1768614643159,-500.0,0.00021917,3]
[402233295,1768614643168,-500.0,0.00021917,3]
[402233297,1768614643179,-1439.17,0.00021917,3]
[402233299,1768614643188,-500.0,0.00021917,3]
[402233300,1768614643196,-500.0,0.00021917,3]
[402233302,1768614643205,-500.0,0.00021917,3]
[402233304,1768614643214,-500.0,0.00021917,3]
[402233307,1768614643224,-823.45,0.00021917,3]
[402233310,1768614643233,-500.0,0.00021917,3]
[402233312,1768614643242,-500.0,0.00021917,3]
[402233314,1768614643251,-500.0,0.00021917,3]
[402233316,1768614643260,-504.12,0.00021917,3]
[402233318,1768614643269,-2229.42,0.00021917,3]
[402233320,1768614643280,-529.90813819,0.00021917,3]
[402233322,1768614643314,-810.38,0.00021917,3]
[402233324,1768614643323,-659.07,0.00021917,3]
[402233326,1768614643332,-500.0,0.00021917,3]
[402233328,1768614643341,-500.0,0.00021917,3]
[402233330,1768614643352,-500.0,0.00021917,3]
[402233332,1768614643361,-1425.57,0.00021917,3]
[402233334,1768614643371,-500.0,0.00021917,3]
[402233336,1768614643380,-500.0,0.00021917,3]
[402233338,1768614643389,-500.0,0.00021917,3]
[402233340,1768614643399,-745.52,0.00021917,3]
[402233342,1768614643407,-444.83809808,0.00021917,3]
[402233344,1768614643416,-539.26284362,0.00021917,3]
[402233346,1768614643425,-500.0,0.00021917,3]
[402233348,1768614643434,-556.48,0.00021917,3]
[402233350,1768614643443,-500.0,0.00021917,3]
[402233352,1768614643452,-641.97,0.00021917,3]
[402233354,1768614643461,-512.30237497,0.00021917,3]
[402233356,1768614643470,-500.0,0.00021917,3]
[402233357,1768614643479,-500.0,0.00021917,3]
[402233359,1768614643489,-537.24982539,0.00021917,3]
[402233361,1768614643499,-2077.22,0.00021917,3]
[402233363,1768614643508,-1152.27,0.00021917,3]
[402233365,1768614643517,-500.0,0.00021917,3]
[402233367,1768614643527,-519.23,0.00021917,3]
[402233369,1768614643536,-602.47,0.00021917,3]
[402233371,1768614643545,-782.57,0.00021917,2]
[402233373,1768614643555,-1776.82,0.00021917,3]
[402233375,1768614643565,-500.0,0.00021917,3]
[402233377,1768614643574,-651.09,0.00021917,3]
[402233379,1768614643584,-1010.7,0.00021917,3]
[402233381,1768614643594,-500.0,0.00021917,3]
[402233383,1768614643604,-500.0,0.00021917,3]
[402233385,1768614643613,-1016.59,0.00021917,3]
[402233387,1768614643622,-1065.76,0.00021917,3]
[402233389,1768614643631,-500.0,0.00021917,3]
[402233391,1768614643641,-500.0,0.00021917,3]
[402233393,1768614643651,-500.0,0.00021917,3]
[402233395,1768614643660,-500.0,0.00021917,3]
[402233397,1768614643669,-943.56,0.00021917,3]
[402233399,1768614643678,-500.0,0.00021917,3]
[402233401,1768614643689,-500.0,0.00021917,3]
[402233403,1768614643699,-1013.72,0.00021917,3]
[402233405,1768614643708,-721.13,0.00021917,3]
[402233407,1768614643718,-500.0,0.00021917,3]
[402233409,1768614643727,-500.0,0.00021917,3]
[402233411,1768614643736,-500.0,0.00021917,3]
[402233413,1768614643746,-500.0,0.00021917,3]
[402233415,1768614643755,-500.0,0.00021917,3]
[402233417,1768614643764,-925.41,0.00021917,3]
[402233419,1768614643778,-500.0,0.00021917,3]
[402233421,1768614643789,-500.0,0.00021917,3]
[402233423,1768614643799,-500.0,0.00021917,3]
[402233425,1768614643810,-1507.17,0.00021917,3]
[402233426,1768614643819,-636.76,0.00021917,3]
[402233428,1768614643829,-500.0,0.00021917,3]
[402233431,1768614643840,-500.0,0.00021917,3]
[402233432,1768614643850,-1237.9,0.00021917,3]
[402233434,1768614643860,-500.0,0.00021917,3]
[402233437,1768614643870,-657.04,0.00021917,3]
[402233439,1768614643881,-509.29,0.00021917,3]
[402233441,1768614643891,-500.0,0.00021917,3]
[402233443,1768614643901,-500.0,0.00021917,3]
[402233445,1768614643912,-500.4671628,0.00021917,3]
[402233447,1768614643922,-225.94247433,0.00021917,3]
[402233449,1768614643932,-500.0,0.00021917,3]
[402233451,1768614643942,-500.0,0.00021917,3]
[402233453,1768614643952,-530.78,0.00021917,3]
[402233455,1768614643962,-500.0,0.00021917,3]
[402233457,1768614643972,-643.98345217,0.00021917,3]
[402233459,1768614643982,-1211.41,0.00021917,3]
[402233461,1768614643992,-500.0,0.00021917,3]
[402233463,1768614644001,-500.0,0.00021917,3]
[402233465,1768614644011,-813.8,0.00021917,3]
[402233467,1768614644021,-500.0,0.00021917,3]
[402233469,1768614644031,-500.0,0.00021917,3]
[402233471,1768614644040,-851.61,0.00021917,3]
[402233472,1768614644050,-936.03,0.00021917,3]
[402233475,1768614644060,-899.01,0.00021917,3]
[402233477,1768614644069,-500.0,0.00021917,2]
[402233478,1768614644079,-500.0,0.00021917,3]
[402233480,1768614644089,-500.0,0.00021917,3]
[402233482,1768614644099,-1118.92,0.00021917,3]
[402233484,1768614644109,-1096.3,0.00021917,3]
[402233486,1768614644119,-500.0,0.00021917,3]
[402233489,1768614644129,-500.0,0.00021917,3]
[402233491,1768614644139,-500.0,0.00021917,3]
[402233492,1768614644149,-500.0,0.00021917,3]
[402233494,1768614644158,-647.1,0.00021917,3]
[402233496,1768614644167,-500.0,0.00021917,3]
[402233498,1768614644177,-500.0,0.00021917,3]
[402233500,1768614644187,-500.0,0.00021917,3]
[402233502,1768614644196,-514.22,0.00021917,3]
[402233504,1768614644206,-500.0,0.00021917,3]
[402233506,1768614644217,-500.0,0.00021917,3]
[402233509,1768614644229,-500.0,0.00021917,3]
[402233511,1768614644239,-634.35,0.00021917,3]
[402233513,1768614644249,-500.0,0.00021917,3]
[402233515,1768614644258,-500.0,0.00021917,3]
[402233517,1768614644268,-1210.81,0.00021917,3]
[402233519,1768614644277,-500.0,0.00021917,3]
[402233521,1768614644287,-500.0,0.00021917,3]
[402233523,1768614644296,-500.0,0.00021917,3]
[402233525,1768614644306,-500.0,0.00021917,3]
[402233527,1768614644316,-500.0,0.00021917,3]
[402233529,1768614644327,-503.78,0.00021917,3]
[402233531,1768614644336,-500.0,0.00021917,3]
[402233533,1768614644346,-1941.88,0.00021917,3]
[402233535,1768614644355,-1000.0,0.00021917,2]
[402233537,1768614644365,-500.0,0.00021917,3]
[402233539,1768614644375,-1555.5,0.00021917,3]
[402233541,1768614644384,-500.0,0.00021917,3]
[402233543,1768614644394,-500.0,0.00021917,3]
[402233545,1768614644404,-500.0,0.00021917,3]
[402233547,1768614644413,-500.0,0.00021917,3]
[402233549,1768614644423,-500.0,0.00021917,3]
[402233550,1768614644433,-500.0,0.00021917,3]
[402233552,1768614644443,-1110.9,0.00021917,3]
[402233554,1768614644452,-500.0,0.00021917,3]
[402233556,1768614644462,-469.18172049,0.00021917,3]
[402233558,1768614644472,-500.0,0.00021917,3]
[402233561,1768614644483,-500.0,0.00021917,3]
[402233563,1768614644493,-500.0,0.00021917,3]
[402233565,1768614644503,-500.0,0.00021917,3]
[402233567,1768614644513,-500.0,0.00021917,3]
[402233568,1768614644523,-500.0,0.00021917,3]
[402233569,1768614644533,-529.17,0.00021917,3]
[402233570,1768614644543,-500.0,0.00021917,3]
[402233571,1768614644553,-500.0,0.00021917,3]
[402233572,1768614644562,-1144.83,0.00021917,3]
[402233573,1768614644572,-1521.47,0.00021917,3]
[402233574,1768614644582,-500.0,0.00021917,3]
[402233575,1768614644592,-1756.66,0.00021917,3]
[402233576,1768614644601,-500.0,0.00021917,3]
[402233577,1768614644611,-1047.08,0.00021917,3]
[402233578,1768614644620,-500.0,0.00021917,3]
[402233579,1768614644630,-500.0,0.00021917,3]
[402233580,1768614644640,-501.17354468,0.00021917,3]
[402233581,1768614644650,-509.99937096,0.00021917,3]
[402233582,1768614644660,-1252.32,0.00021917,3]
[402233583,1768614644670,-500.0,0.00021917,3]
[402233584,1768614644679,-500.0,0.00021917,3]
[402233585,1768614644689,-500.0,0.00021917,3]
[402233586,1768614644698,-500.0,0.00021917,3]
[402233587,1768614644709,-500.0,0.00021917,3]
[402233589,1768614644719,-500.0,0.00021917,3]
[402233591,1768614644728,-1993.97,0.00021917,3]
[402233593,1768614644738,-500.0,0.00021917,3]
[402233596,1768614644748,-736.31,0.00021917,3]
[402233598,1768614644757,-500.0,0.00021917,3]
[402233600,1768614644768,-500.0,0.00021917,3]
[402233602,1768614644780,-500.0,0.00021917,3]
[402233604,1768614644791,-500.0,0.00021917,3]
[402233606,1768614644800,-500.0,0.00021917,3]
[402233608,1768614644811,-500.0,0.00021917,3]
[402233610,1768614644821,-587.78,0.00021917,3]
[402233612,1768614644831,-613.24737358,0.00021917,3]
[402233614,1768614644840,-633.87,0.00021917,3]
[402233616,1768614644851,-2101.02,0.00021917,3]
[402233618,1768614644861,-500.0,0.00021917,3]
[402233620,1768614644870,-670.09,0.00021917,3]
[402233622,1768614644880,-1851.06,0.00021917,3]
[402233624,1768614644889,-525.12,0.00021917,3]
[402233626,1768614644899,-545.89,0.00021917,3]
[402233629,1768614644909,-500.0,0.00021917,3]
[402233631,1768614644918,-1013.69,0.00021917,3]
[402233633,1768614644928,-500.0,0.00021917,3]
[402233635,1768614644937,-500.0,0.00021917,3]
[402233637,1768614644947,-500.0,0.00021917,3]
[402233639,1768614644956,-500.0,0.00021917,3]
[402233641,1768614644966,-500.0,0.00021917,3]
[402233643,1768614644976,-973.17,0.00021917,3]
[402233645,1768614644986,-523.78,0.00021917,3]
[402233647,1768614644996,-500.0,0.00021917,3]
[402233649,1768614645008,-500.0,0.00021917,3]
[402233652,1768614645020,-500.0,0.00021917,3]
[402233654,1768614645030,-1503.38,0.00021917,3]
[402233656,1768614645041,-500.0,0.00021917,3]
[402233658,1768614645052,-500.0,0.00021917,3]
[402233660,1768614645062,-500.0,0.00021917,3]
[402233662,1768614645072,-500.0,0.00021917,3]
[402233664,1768614645082,-500.0,0.00021917,3]
[402233667,1768614645091,-500.0,0.00021917,3]
[402233669,1768614645101,-500.0,0.00021917,3]
[402233671,1768614645111,-500.0,0.00021917,3]
[402233673,1768614645121,-172.631544,0.00021917,3]
[402233675,1768614645130,-500.0,0.00021917,3]
[402233677,1768614645140,-222.32582967,0.00021917,3]
[402233679,1768614645150,-1648.72,0.00021917,3]
[402233681,1768614645159,-500.0,0.00021917,3]
[402233683,1768614645169,-1043.39,0.00021917,3]
[402233685,1768614645178,-611.86349143,0.00021917,3]
[402233687,1768614645190,-158.856128,0.00021917,3]
[402233689,1768614645199,-500.0,0.00021917,3]
[402233692,1768614645214,-587.21,0.00021917,3]
[402233694,1768614645224,-500.0,0.00021917,3]
[402233696,1768614645233,-500.0,0.00021917,3]
[402233698,1768614645244,-500.0,0.00021917,3]
[402233700,1768614645259,-500.0,0.00021917,3]
[402233702,1768614645269,-500.0,0.00021917,3]
[402233704,1768614645278,-500.0,0.00021917,3]
[402233706,1768614645288,-500.0,0.00021917,3]
[402233708,1768614645298,-516.98754424,0.00021917,3]
[402233710,1768614645308,-553.79,0.00021917,3]
[402233712,1768614645318,-500.0,0.00021917,3]
[402233714,1768614645328,-500.0,0.00021917,3]
[402233716,1768614645337,-500.0,0.00021917,3]
[402233718,1768614645348,-500.0,0.00021917,3]
[402233720,1768614645358,-1047.16,0.00021917,3]
[402233722,1768614645367,-500.0,0.00021917,3]
[402233724,1768614645377,-500.0,0.00021917,3]
[402233726,1768614645386,-500.0,0.00021917,3]
[402233728,1768614645396,-500.0,0.00021917,3]
[402233731,1768614645405,-1660.04,0.00021917,3]
[402233733,1768614645416,-500.0,0.00021917,3]
[402233735,1768614645425,-500.0,0.00021917,3]
[402233737,1768614645435,-1042.53,0.00021917,3]
[402233739,1768614645444,-1613.52,0.00021917,3]
[402233741,1768614645453,-500.0,0.00021917,3]
[402233743,1768614645463,-784.61,0.00021917,3]
[402233745,1768614645473,-797.64,0.00021917,3]
[402233747,1768614645482,-500.0,0.00021917,3]
[402233749,1768614645492,-744.23,0.00021917,3]
[402233751,1768614645502,-500.0,0.00021917,3]
[402233753,1768614645511,-500.0,0.00021917,3]
[402233756,1768614645521,-500.0,0.00021917,3]
[402233758,1768614645531,-500.0,0.00021917,3]
[402233760,1768614645541,-500.0,0.00021917,3]
[402233762,1768614645551,-500.0,0.00021917,3]
[402233764,1768614645561,-500.0,0.00021917,3]
[402233766,1768614645571,-500.0,0.00021917,3]
[402233768,1768614645580,-500.0,0.00021917,3]
[402233771,1768614645591,-500.0,0.00021917,3]
[402233773,1768614645600,-500.0,0.00021917,3]
[402233775,1768614645610,-500.0,0.00021917,3]
[402233777,1768614645620,-1072.77,0.00021917,3]
[402233779,1768614645630,-500.0,0.00021917,3]
[402233781,1768614645639,-2136.32,0.00021917,3]
[402233783,1768614645649,-601.8,0.00021917,3]
[402233785,1768614645659,-600.77,0.00021917,3]
[402233787,1768614645668,-1534.16,0.00021917,3]
[402233789,1768614645677,-500.0,0.00021917,3]
[402233791,1768614645687,-772.16,0.00021917,3]
[402233793,1768614645697,-825.28,0.00021917,3]
[402233795,1768614645707,-686.86,0.00021917,3]
[402233797,1768614645717,-589.99,0.00021917,3]
[402233799,1768614645727,-1022.05,0.00021917,3]
[402233801,1768614645737,-506.71,0.00021917,3]
[402233830,1768614645996,-847.18,0.00021917,3]
[402233833,1768614646019,-2456.65,0.00021917,3]
[402233835,1768614646029,-502.00992738,0.00021917,3]
[402233837,1768614646038,-8441.79,0.00021917,3]
[402233839,1768614646048,-500.0,0.00021917,3]
[402233841,1768614646058,-651.81,0.00021917,3]
[402233843,1768614646068,-500.0,0.00021917,3]
[402233845,1768614646078,-500.0,0.00021917,3]
[402233847,1768614646087,-1709.82,0.00021917,3]
[402233849,1768614646096,-500.0,0.00021917,3]
[402233851,1768614646107,-943.63,0.00021917,3]
[402233853,1768614646117,-1719.93,0.00021917,3]
[402233855,1768614646127,-1417.89,0.00021917,3]
[402233857,1768614646136,-500.0,0.00021917,3]
[402233859,1768614646147,-921.0,0.00021917,3]
[402233861,1768614646156,-937.51,0.00021917,3]
[402233863,1768614646166,-500.0,0.00021917,3]
[402233865,1768614646176,-512.3,0.00021917,3]
[402233867,1768614646186,-500.0,0.00021917,3]
[402233869,1768614646195,-500.0,0.00021917,3]
[402233871,1768614646204,-1140.5,0.00021917,3]
[402233873,1768614646214,-1329.23,0.00021917,3]
[402233875,1768614646223,-500.0,0.00021917,3]
[402233878,1768614646233,-1411.17,0.00021917,3]
[402233879,1768614646242,-500.0,0.00021917,3]
[402233881,1768614646252,-500.0,0.00021917,3]
[402233884,1768614646262,-500.0,0.00021917,3]
[402233886,1768614646273,-500.0,0.00021917,3]
[402233888,1768614646283,-183.73779352,0.00021917,3]
[402233890,1768614646293,-500.0,0.00021917,3]
[402233892,1768614646302,-500.0,0.00021917,3]
[402233894,1768614646312,-953.93,0.00021917,3]
[402233896,1768614646321,-514.5,0.00021917,3]
[402233898,1768614646331,-598.89865208,0.00021917,3]
[402233900,1768614646340,-1892.58,0.00021917,3]
[402233902,1768614646350,-500.0,0.00021917,3]
[402233904,1768614646359,-834.37,0.00021917,3]
[402233906,1768614646368,-845.08,0.00021917,3]
[402233908,1768614646377,-500.0,0.00021917,3]
[402233910,1768614646387,-500.0,0.00021917,3]
[402233912,1768614646398,-500.0,0.00021917,3]
[402233914,1768614646407,-1000.0,0.00021917,2]
[402233916,1768614646417,-500.0,0.00021917,3]
[402233918,1768614646427,-500.0,0.00021917,3]
[402233920,1768614646436,-500.0,0.00021917,3]
[402233922,1768614646445,-500.0,0.00021917,3]
[402233924,1768614646455,-740.56,0.00021917,3]
[402233926,1768614646464,-500.0,0.00021917,3]
[402233928,1768614646474,-531.80288578,0.00021917,3]
[402233930,1768614646483,-500.0,0.00021917,3]
[402233932,1768614646492,-972.05,0.00021917,3]
[402233934,1768614646502,-500.0,0.00021917,3]
[402233936,1768614646511,-910.78,0.00021917,3]
[402233938,1768614646520,-500.0,0.00021917,3]
[402233940,1768614646529,-500.0,0.00021917,3]
[402233942,1768614646539,-500.0,0.00021917,3]
[402233944,1768614646548,-500.0,0.00021917,3]
[402233946,1768614646558,-500.0,0.00021917,3]
[402233948,1768614646568,-500.0,0.00021917,3]
[402233950,1768614646578,-500.0,0.00021917,3]
[402233952,1768614646588,-1004.54,0.00021917,3]
[402233954,1768614646597,-500.0,0.00021917,3]
[402233956,1768614646608,-823.03,0.00021917,3]
[402233958,1768614646617,-500.0,0.00021917,3]
[402233960,1768614646628,-585.94,0.00021917,3]
[402233962,1768614646637,-500.0,0.00021917,3]
[402233964,1768614646647,-500.0,0.00021917,3]
[402233966,1768614646656,-1089.72,0.00021917,3]
[402233968,1768614646665,-500.0,0.00021917,3]
[402233970,1768614646674,-638.72,0.00021917,3]
[402233972,1768614646683,-500.0,0.00021917,3]
[402233974,1768614646692,-705.11,0.00021917,3]
[402233976,1768614646701,-500.0,0.00021917,3]
[402233978,1768614646711,-567.71,0.00021917,3]
[402233980,1768614646720,-571.49,0.00021917,3]
[402233982,1768614646730,-500.0,0.00021917,3]
[402233984,1768614646739,-500.0,0.00021917,3]
[402233986,1768614646748,-505.74293991,0.00021917,3]
[402233988,1768614646757,-500.0,0.00021917,3]
[402233990,1768614646766,-1089.54,0.00021917,3]
[402233992,1768614646779,-500.0,0.00021917,3]
[402233994,1768614646788,-1514.75,0.00021917,3]
[402233996,1768614646797,-500.0,0.00021917,3]
[402233998,1768614646806,-826.15,0.00021917,3]
[402234000,1768614646815,-500.0,0.00021917,3]
[402234002,1768614646824,-1911.73,0.00021917,3]
[402234004,1768614646833,-500.0,0.00021917,3]
[402234006,1768614646844,-722.95,0.00021917,3]
[402234008,1768614646855,-500.0,0.00021917,3]
[402234010,1768614646864,-500.0,0.00021917,3]
[402234012,1768614646874,-500.0,0.00021917,3]
[402234014,1768614646883,-532.76,0.00021917,3]
[402234016,1768614646892,-500.0,0.00021917,3]
[402234018,1768614646901,-850.26,0.00021917,3]
[402234020,1768614646911,-568.79,0.00021917,3]
[402234022,1768614646920,-747.15,0.00021917,3]
[402234024,1768614646930,-3952.98,0.00021917,3]
[402234026,1768614646939,-500.0,0.00021917,3]
[402234028,1768614646948,-500.0,0.00021917,3]
[402234030,1768614646957,-500.0,0.00021917,3]
[402234032,1768614646967,-1412.2,0.00021917,3]
[402234034,1768614646978,-588.16,0.00021917,3]
[402234036,1768614646988,-500.0,0.00021917,3]
[402234038,1768614646997,-500.0,0.00021917,3]
[402234041,1768614647008,-219.73785091,0.00021917,3]
[402234043,1768614647018,-15665.01,0.00021917,3]
[402234045,1768614647028,-2821.0,0.00021917,3]
[402234046,1768614647039,-1128.69,0.00021917,3]
[402234047,1768614647049,-500.64667728,0.00021917,3]
[402234048,1768614647059,-500.0,0.00021917,3]
[402234049,1768614647069,-500.0,0.00021917,3]
[402234050,1768614647078,-1622.29,0.00021917,3]
[402234051,1768614647087,-500.0,0.00021917,3]
[402234052,1768614647098,-633.15,0.00021917,3]
[402234053,1768614647107,-500.0,0.00021917,3]
[402234054,1768614647117,-500.0,0.00021917,3]
[402234055,1768614647126,-1310.48,0.00021917,3]
[402234056,1768614647135,-467.49360859,0.00021917,3]
[402234057,1768614647145,-1456.01,0.00021917,3]
[402234058,1768614647154,-501.16566781,0.00021917,3]
[402234059,1768614647163,-1289.76,0.00021917,3]
[402234060,1768614647173,-500.0,0.00021917,3]
[402234061,1768614647182,-756.84,0.00021917,3]
[402234062,1768614647191,-500.0,0.00021917,3]
[402234064,1768614647200,-500.0,0.00021917,3]
[402234065,1768614647210,-500.0,0.00021917,3]
[402234067,1768614647219,-500.0,0.00021917,3]
[402234069,1768614647228,-683.46,0.00021917,3]
[402234071,1768614647237,-1150.52,0.00021917,3]
[402234073,1768614647248,-500.0,0.00021917,3]
[402234075,1768614647257,-500.0,0.00021917,3]
[402234077,1768614647268,-500.0,0.00021917,3]
[402234079,1768614647277,-1431.77,0.00021917,3]
[402234081,1768614647286,-500.0,0.00021917,3]
[402234083,1768614647296,-500.0,0.00021917,3]
[402234085,1768614647305,-500.0,0.00021917,3]
[402234087,1768614647314,-1559.6,0.00021917,3]
[402234089,1768614647324,-500.0,0.00021917,3]
[402234091,1768614647333,-500.0,0.00021917,3]
[402234093,1768614647342,-500.0,0.00021917,3]
[402234095,1768614647352,-500.0,0.00021917,3]
[402234098,1768614647361,-500.0,0.00021917,3]
[402234100,1768614647370,-500.0,0.00021917,3]
[402234102,1768614647380,-825.74,0.00021917,3]
[402234104,1768614647389,-501.52,0.00021917,3]
[402234106,1768614647399,-1526.16,0.00021917,3]
[402234108,1768614647408,-500.0,0.00021917,3]
[402234110,1768614647418,-500.0,0.00021917,3]
[402234112,1768614647427,-1141.81,0.00021917,3]
[402234114,1768614647436,-309.96810054,0.00021917,3]
[402234116,1768614647445,-500.0,0.00021917,3]
[402234118,1768614647454,-500.0,0.00021917,3]
[402234120,1768614647463,-598.63,0.00021917,3]
[402234122,1768614647473,-1326.69,0.00021917,3]
[402234124,1768614647482,-423.66716387,0.00021917,3]
[402234126,1768614647491,-1717.32,0.00021917,3]
[402234128,1768614647500,-500.0,0.00021917,3]
[402234130,1768614647509,-500.0,0.00021917,3]
[402234132,1768614647518,-500.0,0.00021917,3]
[402234134,1768614647527,-500.64885102,0.00021917,3]
[402234136,1768614647536,-424.34553456,0.00021917,3]
[402234138,1768614647545,-500.0,0.00021917,3]
[402234140,1768614647555,-2793.9,0.00021917,3]
[402234142,1768614647564,-500.0,0.00021917,3]
[402234144,1768614647573,-500.0,0.00021917,3]